[Event "FRA-ch Youth 2017"]
[Site "Belfort"]
[Date "2017.04.19"]
[Round "5"]
[White "Tahay, Alexis"]
[Black "Lamard, Guillaume"]
[Result "1-0"]
[ECO "C95"]
[WhiteElo "2239"]
[BlackElo "2307"]
[Annotator "NA"]
[PlyCount "84"]
[EventDate "2017.??.??"]
[EventCountry "FRA"]
[SourceTitle "playchess.com"]
[Source "ChessBase"]
[SourceQuality "1"]
[TimeControl "5400+30"]

{[%evp 9,81,41,33,32767,32767,32767,32767,32767,27,32,39,32767,32767,32767,32767,32767,32767,32767,32767,43,37,15,29,16,36,39,91,95,120,41,95,-17,-8,-17,0,0,32767,33,31,45,47,31,32767,138,147,141,167,145,222,209,223,239,285,215,32767,202,32767,289,248,32767,32767,32767,32767,32767,32767,32767,32767,32767,708,911,841,497,580,618]} 1. e4 e5 2. Nf3 Nc6 3. Bb5 a6 4. Ba4 Nf6 5. O-O Be7 6. Re1 b5 7. Bb3 d6 8. c3 O-O 9. h3 Nb8 10. d4 Nbd7 11. Nbd2 Bb7 12. Bc2 Re8 13. a4 Bf8 14. Bd3 c6 15. Qc2 {C95: Closed Ruy Lopez: Breyer Variation with 10 d4} Rc8 16. axb5 {LiveBook: 8 Games} cxb5 $146 (16... axb5 17. b4 c5 18. bxc5 exd4 19. c6 dxc3 20. cxb7 cxd2 21. Qxd2 Rb8 22. Bxb5 Qb6 {0-1 (38) Karjakin,S (2762)-Svidler,P (2727) Baku 2015}) 17. d5 Nh5 18. Nb3 Nf4 19. Na5 ({White should play} 19. Bf1 $16) 19... Ba8 {[#]} (19... Nxd3 $11 {remains equal.} 20. Qxd3 Nc5) 20. g3 ({Better is} 20. Bf1 $1 $16) 20... Nxd3 ({Not} 20... Nxh3+ $2 21. Kg2 $18) 21. Qxd3 f5 22. exf5 Nc5 23. Qd1 $1 Qd7 24. g4 $1 Qf7 25. Nc6 Rxc6 26. dxc6 Bxc6 27. Be3 Qb7 28. Nh4 Ne4 {[#]} 29. g5 $1 d5 {[#]} 30. Qh5 $1 Rd8 (30... b4 {was worth a try.} 31. f3 Nd6) 31. Rad1 ({Weaker is} 31. g6 h6 $16) 31... b4 {[#]} 32. f3 $1 Nd6 33. g6 h6 34. Bxh6 Ne8 35. Bg5 Nf6 36. Bxf6 gxf6 37. f4 Qa7+ 38. Kh2 d4 39. fxe5 d3 40. Rd2 bxc3 $18 41. bxc3 Bg7 42. Qh7+ Kf8 1-0

[Event "FRA-ch Youth 2017"]
[Site "Belfort"]
[Date "2017.04.19"]
[Round "5"]
[White "Cohen Revivo, Shoham"]
[Black "David, Bogdan-Emanuel"]
[Result "1/2-1/2"]
[ECO "B24"]
[WhiteElo "2221"]
[BlackElo "2099"]
[Annotator "NA"]
[PlyCount "85"]
[EventDate "2017.??.??"]
[EventCountry "FRA"]
[SourceTitle "playchess.com"]
[Source "ChessBase"]
[SourceQuality "1"]
[TimeControl "40/5400+30:1800+30"]

{[%evp 9,84,1,0,0,3,0,-11,-15,-13,-15,-1,-15,0,0,0,-26,0,-22,6,6,40,48,78,32767,32767,32767,32767,89,107,84,133,122,138,124,124,113,136,116,127,142,141,143,124,32767,150,120,32767,32767,200,32767,32767,32767,238,264,32767,32767,265,325,401,32767,32767,83,94,45,32767,32767,32767,32767,32767,32767,0,0,185,32767,242,5,38]} 1. e4 {[%emt 0:00:00]} c5 {[%emt 0:00:04]} 2. Nf3 {[%emt 0:00:00]} e6 {[%emt 0:00:06]} 3. g3 {[%emt 0:00:19]} Nc6 {[%emt 0:00:13]} 4. Bg2 {[%emt 0:00:19]} Nf6 {[%emt 0:00:19]} 5. Qe2 {[%emt 0:00:27] B40: Sicilian: 2...e6, Unusual lines} e5 {[%emt 0:00:15]} 6. O-O {[%emt 0:01:49]} Be7 {[%emt 0:01:23]} 7. Nc3 {[%emt 0:15:08]} (7. c3 O-O 8. d3 Re8 9. a4 Bf8 10. Na3 d5 11. exd5 Nxd5 12. Nc4 f6 {0-1 (58) Andriasian,Z (2621)-Ponomariov,R (2709) Tallinn 2016}) 7... d6 {[%emt 0:02:35] LiveBook: 3 Games} 8. h3 {[%emt 0:01:37]} O-O {[%emt 0:03:48]} 9. d3 {[%emt 0:03:30]} h6 {[%emt 0:03:25]} 10. Nh2 $146 {[%emt 0:09:28]} (10. a3 Be6 11. Kh2 Rc8 12. Bd2 Re8 13. Rae1 Bf8 14. Qd1 g6 {0-1 (33) Guion,G (1916)-Kveinys,A (2491) Charleroi 2015}) 10... Nd4 {[%emt 0:05:15]} 11. Qd1 {[%emt 0:00:49]} Bd7 {[%emt 0:03:33]} 12. f4 {[%emt 0:03:15]} exf4 {[%emt 0:02:52]} 13. Bxf4 {[%emt 0:05:21]} Qc8 {[%emt 0:11:37]} 14. g4 {[%emt 0:00:55]} Ne6 {[%emt 0:00:09]} 15. Bg3 {[%emt 0:04:08]} Bc6 {[%emt 0:11:15]} 16. Nd5 {[%emt 0:03:28]} Bxd5 {[%emt 0:00:16]} 17. exd5 {[%emt 0:00:06]} Nc7 {[%emt 0:00:28]} 18. c4 {[%emt 0:00:14]} Qd8 {[%emt 0:04:28]} 19. Nf3 {[%emt 0:04:15]} Nd7 {[%emt 0:03:57]} 20. Qe2 {[%emt 0:03:18]} Ne8 {[%emt 0:13:43]} 21. Rae1 {[%emt 0:16:46]} Bf6 {[%emt 0:00:07]} 22. h4 {[%emt 0:03:56]} Ne5 {[%emt 0:05:10]} 23. Nxe5 {[%emt 0:02:17]} Bxe5 {[%emt 0:01:27]} 24. Bxe5 {[%emt 0:02:00]} dxe5 {[%emt 0:00:01]} 25. Qf2 {[%emt 0:01:09]} ({Don't do} 25. Qxe5 $6 Qxh4 26. Qh5 Qg3 $14) 25... Qe7 {[%emt 0:10:47]} 26. Qg3 {[%emt 0:01:18]} f6 {[%emt 0:02:22]} 27. g5 {[%emt 0:02:15]} Kh8 {[%emt 0:05:12]} 28. Qe3 {[%emt 0:04:06]} Rd8 {[%emt 0:03:18]} 29. gxf6 {[%emt 0:04:00]} Rxf6 {[%emt 0:01:15]} 30. Rxf6 {[%emt 0:01:50]} Qxf6 {[%emt 0:02:17]} (30... Nxf6 $142 31. Qxe5 Qd7) 31. Qxc5 {[%emt 0:00:35]} ({Don't do} 31. Qxe5 $6 Qxh4 32. Qe7 Qd4+ 33. Kh1 Qf6 $18) 31... Nd6 {[%emt 0:03:04]} 32. Qf2 {[%emt 0:01:09]} Nf5 {[%emt 0:01:00]} 33. Rf1 {[%emt 0:01:58]} ({Not} 33. Qxa7 Nd4 $14) 33... Rf8 {[%emt 0:00:05]} 34. Bh3 {[%emt 0:02:20]} g6 {[%emt 0:00:44]} 35. Bxf5 $2 {[%emt 0:01:19]} (35. c5 $18) 35... gxf5 {[%emt 0:00:10] [#]} 36. Kh2 {[%emt 0:00:33]} ({Better is} 36. Kh1 $1 $16) 36... Rg8 {[%emt 0:01:04]} 37. Qxf5 {[%emt 0:01:04]} Qxh4+ {[%emt 0:00:06]} 38. Qh3 {[%emt 0:00:04]} Qg5 {[%emt 0:00:11]} 39. Qf3 {[%emt 0:01:33]} Qh4+ $1 {[%emt 0:00:44]} 40. Qh3 {[%emt 0:00:00]} Qg5 {[%emt 0:00:10]} 41. Kh1 {[%emt 0:10:59]} Rg6 {[%emt 0:01:25]} 42. Qh2 $2 {[%emt 0:02:59]} ({White should play} 42. b4 $18) 42... Qe3 $14 {[%emt 0:01:38]} 43. Qh4 {[%emt 0:11:59]} 1/2-1/2

[Event "FRA-ch Youth 2017"]
[Site "Belfort"]
[Date "2017.04.19"]
[Round "5"]
[White "Bouvet, Florian"]
[Black "Jrade, Willis"]
[Result "1/2-1/2"]
[ECO "B28"]
[WhiteElo "2183"]
[BlackElo "2113"]
[Annotator "NA"]
[PlyCount "136"]
[EventDate "2017.??.??"]
[EventCountry "FRA"]
[SourceTitle "playchess.com"]
[Source "ChessBase"]
[SourceQuality "1"]
[TimeControl "5400+30"]

{[%evp 8,120,30,32767,11,10,17,22,52,33,49,45,56,39,68,44,77,73,84,52,63,53,32767,32767,40,30,42,32,41,4,8,32767,0,-13,7,15,28,32767,16,0,32767,-19,-4,0,0,0,0,32767,49,27,21,32767,32767,32767,32767,32767,32767,32767,13,20,26,32767,32767,0,32767,32767,32767,13,32767,8,32767,32767,32767,32767,32767,16,32767,32767,32767,32767,32767,32767,32767,32767,32767,32767,7,0,32767,4,32767,11,32767,25,32767,15,15,2,8,0,32767,11,14,32767,14,32767,32767,32767,14,32767,32767,0,10,8,0]} 1. e4 {[%emt 0:00:00]} c5 {[%emt 0:00:32]} 2. Nc3 {[%emt 0:00:01]} Nc6 {[%emt 0:00:39]} 3. Bb5 {[%emt 0:00:06]} Nd4 {[%emt 0:01:30]} 4. Nf3 {[%emt 0:00:12]} g6 {[%emt 0:01:35]} 5. O-O {[%emt 0:00:46]} Bg7 {[%emt 0:01:53]} 6. Nxd4 {[%emt 0:01:28]} cxd4 {[%emt 0:00:20]} 7. Ne2 {[%emt 0:00:10]} Qb6 {[%emt 0:10:04] LiveBook: 7 Games} 8. Bc4 {[%emt 0:00:49]} d6 {[%emt 0:01:07]} 9. d3 {[%emt 0:02:42]} Nf6 {[%emt 0:06:40]} 10. a4 {[%emt 0:00:14]} a5 {[%emt 0:03:44] B31: Sicilian: 2...Nc6 3 Bb5 g6} 11. Ra3 $146 {[%emt 0:02:23]} (11. c3 dxc3 12. bxc3 O-O 13. Be3 Qc7 14. f3 Bd7 15. Qb3 Bc6 16. Rfb1 e6 17. Bb5 Nd7 18. d4 {0-1 (42) Libiszewski,F (2425)-Flear,C (2257) Montpellier 2004}) 11... Nd7 {[%emt 0:06:58]} 12. c3 {[%emt 0:03:56]} dxc3 {[%emt 0:04:39]} 13. Nxc3 {[%emt 0:01:29]} O-O {[%emt 0:03:53]} 14. Nd5 {[%emt 0:02:39]} Qd8 {[%emt 0:00:48]} 15. Bg5 {[%emt 0:00:07]} Nf6 {[%emt 0:01:04]} 16. Bxf6 {[%emt 0:12:10]} Bxf6 {[%emt 0:03:04]} 17. Nxf6+ {[%emt 0:00:31]} exf6 {[%emt 0:00:01]} 18. Rb3 {[%emt 0:01:08]} Bd7 {[%emt 0:04:43]} 19. Bb5 {[%emt 0:05:52]} Be6 {[%emt 0:04:02]} 20. Rc3 {[%emt 0:02:24]} Qb6 {[%emt 0:05:17]} 21. Qf3 {[%emt 0:02:21]} Kg7 {[%emt 0:00:54]} 22. Rfc1 {[%emt 0:04:58]} Rac8 {[%emt 0:01:59]} 23. Qe2 {[%emt 0:02:57]} Qd4 {[%emt 0:06:11]} 24. Kf1 {[%emt 0:04:40]} Qe5 {[%emt 0:06:05]} 25. g3 {[%emt 0:00:44]} d5 {[%emt 0:03:36]} 26. f4 {[%emt 0:02:48]} Qd4 {[%emt 0:06:00]} 27. Qf2 {[%emt 0:01:06]} Qxf2+ {[%emt 0:03:14]} 28. Kxf2 {[%emt 0:00:03]} dxe4 {[%emt 0:00:18]} 29. Rxc8 {[%emt 0:02:41]} Rxc8 {[%emt 0:00:10]} 30. Rxc8 {[%emt 0:00:06]} Bxc8 {[%emt 0:00:01]} 31. dxe4 {[%emt 0:00:09]} Kf8 {[%emt 0:01:07]} 32. Ke3 {[%emt 0:00:36]} Ke7 {[%emt 0:01:18]} 33. Kd4 {[%emt 0:02:26]} b6 {[%emt 0:02:29]} 34. Bc4 {[%emt 0:03:52]} Be6 {[%emt 0:03:37]} 35. Bd5 {[%emt 0:01:36]} Bd7 {[%emt 0:02:17]} 36. b3 {[%emt 0:00:23]} f5 {[%emt 0:01:38]} 37. e5 {[%emt 0:00:33]} Be6 {[%emt 0:00:58]} 38. Bc4 {[%emt 0:03:19]} Kd7 {[%emt 0:01:10]} 39. Bb5+ {[%emt 0:00:48]} Kc7 {[%emt 0:00:21]} 40. Kc3 {[%emt 0:00:04]} Kb7 {[%emt 0:00:08]} 41. b4 {[%emt 0:00:27]} axb4+ {[%emt 0:00:36]} 42. Kxb4 {[%emt 0:00:01]} Kc7 {[%emt 0:01:08]} 43. Be8 {[%emt 0:03:31]} Kd8 {[%emt 0:00:38]} 44. Bc6 {[%emt 0:00:19]} Kc7 {[%emt 0:00:57]} 45. Bf3 {[%emt 0:00:05]} Bd7 {[%emt 0:00:42]} 46. Bd5 {[%emt 0:03:49]} Be6 {[%emt 0:01:39]} 47. Bf3 {[%emt 0:00:06]} Bd7 {[%emt 0:00:07]} 48. h4 {[%emt 0:00:25]} h6 {[%emt 0:01:37]} 49. h5 {[%emt 0:00:24]} Be6 {[%emt 0:00:13]} 50. Be2 {[%emt 0:04:24]} Kc6 {[%emt 0:00:53]} 51. Bb5+ {[%emt 0:00:29]} Kc7 {[%emt 0:00:37]} 52. hxg6 {[%emt 0:02:03]} fxg6 {[%emt 0:00:00]} 53. Bc4 {[%emt 0:00:12]} Bc8 {[%emt 0:01:06] [#]} 54. Bf7 {[%emt 0:02:33]} (54. e6 $1 $16 {[%cal Re6e7]} Bb7 55. e7) 54... g5 {[%emt 0:00:07]} 55. Kc4 {[%emt 0:00:47]} Kd8 {[%emt 0:00:47]} 56. Kb5 {[%emt 0:10:00]} Bd7+ {[%emt 0:00:29]} 57. Kxb6 {[%emt 0:00:05]} Bxa4 58. Be6 {[%emt 0:02:49]} Bd7 {[%emt 0:00:46]} 59. Bxd7 {[%emt 0:01:56]} Kxd7 {[%emt 0:00:01]} 60. Kc5 {[%emt 0:00:06]} Ke6 $11 {[%emt 0:00:04]} 61. Kd4 {[%emt 0:00:04]} g4 {[%emt 0:00:07]} 62. Ke3 {[%emt 0:01:33]} Kd5 {[%emt 0:00:12]} 63. Kd3 {[%emt 0:00:08]} h5 {[%emt 0:00:05]} 64. Ke3 {[%emt 0:00:04]} Ke6 {[%emt 0:00:05]} 65. Kd4 {[%emt 0:00:48]} Ke7 {[%emt 0:00:09]} 66. Ke3 {[%emt 0:00:42]} Ke6 {[%emt 0:00:04]} 67. Kd4 {[%emt 0:01:11]} Ke7 {[%emt 0:00:10]} 68. Kd3 {[%emt 0:00:35]} Ke6 {[%emt 0:00:06] Ke4 Kxe5+} 1/2-1/2

[Event "FRA-ch Youth 2017"]
[Site "Belfort"]
[Date "2017.04.19"]
[Round "5"]
[White "Daeschler, Florian"]
[Black "Micottis, Dorian"]
[Result "0-1"]
[ECO "A37"]
[WhiteElo "2124"]
[BlackElo "2249"]
[Annotator "NA"]
[PlyCount "76"]
[EventDate "2017.??.??"]
[EventCountry "FRA"]
[SourceTitle "playchess.com"]
[Source "ChessBase"]
[SourceQuality "1"]
[TimeControl "5400+30"]

{[%evp 10,74,9,14,32767,6,12,25,32767,-8,6,-18,15,0,22,39,46,32767,32767,32767,32767,-10,32767,15,32767,-8,14,-42,-31,32767,32767,-85,-38,-128,32767,32767,32767,32767,-214,-217,32767,32767,-153,32767,32767,32767,-215,32767,32767,32767,32767,32767,32767,32767,-306,-376,-393,32767,32767,-435,32767,32767,32767,-1680,32767,32767,-29975]} 1. c4 {[%emt 0:00:00]} g6 {[%emt 0:00:36]} 2. Nc3 {[%emt 0:00:01]} c5 {[%emt 0:00:14]} 3. g3 {[%emt 0:00:17]} Bg7 {[%emt 0:00:04]} 4. Bg2 {[%emt 0:00:18]} Nc6 {[%emt 0:00:04]} 5. Nf3 {[%emt 0:00:06]} d6 {[%emt 0:00:04]} 6. O-O {[%emt 0:00:10]} Bf5 {[%emt 0:00:44]} 7. d3 {[%emt 0:04:23] LiveBook: 97 Games A37: Symmetrical English vs ...g6: 4 Bg2 Bg7 5 Nf3} (7. b3 Qd7 8. Bb2 Bh3 9. e3 Bxg2 10. Kxg2 Nf6 11. Nd5 O-O 12. Bxf6 exf6 13. d4 Rad8 14. Qc2 Ne7 15. Nxe7+ Qxe7 {1-0 (48) Banusz,T (2616)-Ragger,M (2682) Graz 2016}) 7... Qd7 {[%emt 0:00:10]} 8. Rb1 {[%emt 0:04:18]} Bh3 {[%emt 0:00:29]} 9. a3 {[%emt 0:04:11]} h5 {[%emt 0:01:58]} 10. Nd5 {[%emt 0:13:29]} Rc8 {[%emt 0:04:02]} 11. b4 $146 {[%emt 0:09:11]} (11. Nh4 Nf6 12. b4 Nxd5 13. cxd5 Bxg2 14. Nxg2 Ne5 {1-0 (34) Tamas,G (2163)-Velickovic,Z (2383) Hungary 2004}) 11... b6 {[%emt 0:05:15]} 12. Bb2 {[%emt 0:09:20]} Bxb2 {[%emt 0:10:05]} 13. Rxb2 {[%emt 0:02:14]} Bxg2 {[%emt 0:00:04]} 14. Kxg2 {[%emt 0:00:11]} h4 {[%emt 0:00:04]} 15. b5 {[%emt 0:10:45]} ({Of course not} 15. Nxh4 g5 16. b5 Ne5 $17) (15. gxh4 Nd4 16. Nxd4 Qg4+ 17. Kh1 Qxd4 $17) 15... Ne5 {[%emt 0:12:15]} 16. e4 {[%emt 0:15:22]} e6 {[%emt 0:12:59]} 17. Ne3 {[%emt 0:01:55]} f5 {[%emt 0:07:46]} 18. Nxe5 {[%emt 0:03:14]} dxe5 {[%emt 0:00:05]} 19. exf5 {[%emt 0:00:34]} Qb7+ {[%emt 0:06:12]} 20. f3 {[%emt 0:00:17]} gxf5 {[%emt 0:00:21]} 21. Qe2 {[%emt 0:03:54]} (21. g4 $11) 21... Nf6 {[%emt 0:03:37]} 22. Nxf5 {[%emt 0:02:19]} exf5 {[%emt 0:00:23]} 23. Qxe5+ {[%emt 0:00:03] [#]} Kf7 $1 {[%emt 0:00:35]} 24. Qxf5 {[%emt 0:00:16]} hxg3 {[%emt 0:08:03]} 25. hxg3 {[%emt 0:02:00]} Rce8 {[%emt 0:00:45]} 26. Qf4 {[%emt 0:03:15]} Qd7 {[%emt 0:01:54]} 27. g4 {[%emt 0:00:14]} Qd4 {[%emt 0:00:36]} 28. Qxd4 {[%emt 0:00:36]} cxd4 {[%emt 0:00:06]} 29. a4 {[%emt 0:05:40]} Re3 {[%emt 0:02:19]} 30. Rd2 {[%emt 0:01:11]} Nd7 {[%emt 0:01:56]} 31. a5 {[%emt 0:00:56]} Nc5 {[%emt 0:01:13]} 32. axb6 {[%emt 0:00:25]} axb6 {[%emt 0:00:02]} 33. Kg3 {[%emt 0:00:24]} Kg6 {[%emt 0:00:59]} 34. Rff2 {[%emt 0:01:18]} Rf8 {[%emt 0:02:43]} 35. Kg2 {[%emt 0:02:42]} Kg5 {[%emt 0:00:14]} 36. Rde2 {[%emt 0:00:20]} Nxd3 {[%emt 0:00:47]} 37. Rxe3 {[%emt 0:00:43]} dxe3 {[%emt 0:00:06]} 38. Ra2 {[%emt 0:00:07]} e2 {[%emt 0:00:29]} 0-1

[Event "FRA-ch Youth 2017"]
[Site "Belfort"]
[Date "2017.04.19"]
[Round "5"]
[White "Mazzella, Enzo"]
[Black "Travadon, Loic"]
[Result "0-1"]
[ECO "A45"]
[WhiteElo "2111"]
[BlackElo "2348"]
[Annotator "ChessBase"]
[PlyCount "90"]
[EventDate "2017.??.??"]
[EventCountry "FRA"]
[SourceTitle "playchess.com"]
[Source "ChessBase"]
[SourceQuality "1"]
[TimeControl "5400+30"]

{[%evp 8,80,-24,-29,-2,-8,0,13,14,-2,14,32767,31,1,25,22,41,52,68,83,92,69,117,78,127,32767,103,87,130,83,81,97,32767,101,116,32767,32767,32767,69,32767,32767,32767,32767,32767,32767,32767,32767,32767,32767,32767,32767,32767,32767,32767,32767,32767,32767,32767,32767,32767,32767,87,94,32767,32767,0,32767,0,0,-32,32767,32767,32767,32767,0]} 1. Nf3 {[%emt 0:00:00]} c5 {[%emt 0:00:07]} 2. b3 {[%emt 0:00:00]} d5 {[%emt 0:03:07]} 3. Bb2 {[%emt 0:00:53]} Nf6 {[%emt 0:00:23]} 4. g3 {[%emt 0:01:59]} Nc6 {[%emt 0:09:14]} 5. Bg2 {[%emt 0:01:04]} e6 {[%emt 0:01:33]} 6. d4 {[%emt 0:01:01]} Bd6 {[%emt 0:01:58]} 7. O-O {[%emt 0:02:21]} O-O {[%emt 0:00:18] LiveBook: 5 Games} 8. c4 {[%emt 0:02:41] D02: 1 d4 d5 2 Nf3 sidelines, including 2...Nf6 3 g3 and 2...Nf6 3 Bf4} (8. Nbd2 cxd4 9. Nxd4 e5 10. Nxc6 bxc6 11. c4 Rb8 12. Qc2 Qe7 13. Rac1 Bb4 14. e3 Bg4 15. Nf3 Bd6 {½-½ (45) Chirila,I (2522)-Krush,I (2444) Saint Louis 2017}) 8... dxc4 {[%emt 0:23:51]} 9. dxc5 {[%emt 0:12:39]} Bxc5 {[%emt 0:00:53]} 10. Qc2 {[%emt 0:00:15]} Be7 {[%emt 0:13:41]} 11. Qxc4 {[%emt 0:02:27]} Nd5 {[%emt 0:02:03]} 12. Rd1 $146 {[%emt 0:11:01]} (12. Ne5 Nxe5 13. Bxe5 Bd7 14. Bxd5 exd5 15. Qd4 f6 16. Qxd5+ {½-½ (61) Darban,M (2327)-Khoshkalam,S (2252) Teheran 2015}) 12... Qb6 {[%emt 0:04:09]} 13. e4 {[%emt 0:03:24]} Nf6 {[%emt 0:00:40]} 14. Nbd2 {[%emt 0:02:25]} Bd7 {[%emt 0:01:05]} 15. Qe2 {[%emt 0:03:04]} a5 {[%emt 0:00:54]} ({Black should play} 15... Na5 $14) 16. Nc4 {[%emt 0:01:04]} Qc7 {[%emt 0:00:23]} 17. Rac1 {[%emt 0:01:01]} Rfd8 {[%emt 0:05:33]} 18. Nfe5 {[%emt 0:11:50]} Be8 {[%emt 0:03:30]} 19. Nxc6 {[%emt 0:10:18]} Rxd1+ {[%emt 0:03:30]} 20. Rxd1 {[%emt 0:01:11]} bxc6 {[%emt 0:01:46]} 21. Be5 {[%emt 0:01:40]} Qa7 {[%emt 0:01:28]} 22. Bxf6 {[%emt 0:08:22]} Bxf6 {[%emt 0:01:07]} 23. Nd6 {[%emt 0:00:40]} Qc5 {[%emt 0:06:24]} 24. Qc4 {[%emt 0:05:34]} Qb6 {[%emt 0:01:59]} 25. Rc1 {[%emt 0:05:11]} Bd7 {[%emt 0:04:39]} 26. Qc5 {[%emt 0:02:31]} Qxc5 {[%emt 0:04:46]} 27. Rxc5 {[%emt 0:00:03]} Bd4 {[%emt 0:00:10]} 28. Rc2 {[%emt 0:01:02]} e5 {[%emt 0:00:50]} 29. Kf1 {[%emt 0:00:41]} c5 {[%emt 0:00:12]} 30. Nb7 {[%emt 0:01:32]} a4 {[%emt 0:01:34]} 31. Nxc5 {[%emt 0:04:10]} Rc8 {[%emt 0:00:27]} 32. b4 {[%emt 0:00:08]} Bb5+ {[%emt 0:02:28]} 33. Kg1 {[%emt 0:00:24]} f6 {[%emt 0:00:45]} 34. Bh3 {[%emt 0:01:16]} Rc7 $16 {[%emt 0:00:38]} 35. Be6+ {[%emt 0:00:43]} Kf8 {[%emt 0:00:30]} 36. Bf5 {[%emt 0:00:39]} (36. Bc4 $14 Bxc4 37. Rxc4) 36... Kf7 {[%emt 0:00:48]} 37. Bg4 {[%emt 0:01:03]} Ke7 {[%emt 0:00:20]} 38. Bf5 {[%emt 0:00:47]} g6 {[%emt 0:00:17]} 39. Bh3 {[%emt 0:00:03]} Kd6 {[%emt 0:00:30]} 40. Rd2 {[%emt 0:00:15]} Ke7 {[%emt 0:01:07]} 41. Rc2 {[%emt 0:00:57]} Kd6 {[%emt 0:00:23]} 42. Rd2 {[%emt 0:01:41]} Ke7 {[%emt 0:00:05]} 43. Rc2 Kd6 {[%emt 0:00:13]} 44. Rd2 {[%emt 0:01:18]} Ke7 {[%emt 0:00:05]} 45. Ne6 Rc6 0-1

[Event "FRA-ch Youth 2017"]
[Site "Belfort"]
[Date "2017.04.19"]
[Round "5"]
[White "Kern, Nicolas"]
[Black "Caloone, Thomas"]
[Result "1/2-1/2"]
[ECO "A41"]
[WhiteElo "2085"]
[BlackElo "2149"]
[Annotator "NA"]
[PlyCount "130"]
[EventDate "2017.??.??"]
[EventCountry "FRA"]
[SourceTitle "playchess.com"]
[Source "ChessBase"]
[SourceQuality "1"]
[TimeControl "5400+30"]

1. e4 {[%emt 0:00:00]} e5 {[%emt 0:00:04]} 2. Nf3 {[%emt 0:00:00]} Nc6 {[%emt 0:00:05]} 3. Nc3 {[%emt 0:00:00]} Nf6 {[%emt 0:00:39]} 4. Bb5 {[%emt 0:00:00]} Bd6 {[%emt 0:02:18]} 5. d3 {[%emt 0:00:16]} O-O {[%emt 0:15:06] C48: Four Knights: 4 Bb5, replies other than 4...Bb4} (5... h6 6. a3 a6 7. Bc4 Bc5 8. b4 Ba7 9. h3 d6 10. Ne2 Be6 11. Bxe6 fxe6 12. Ng3 O-O 13. c3 Qe8 14. O-O Nh5 15. Nxh5 Qxh5 {½-½ (24) Svidler,P (2741)-Yu,Y (2750) Shenzhen 2017}) 6. O-O {[%emt 0:02:59]} Re8 {[%emt 0:07:13]} 7. Bg5 {[%emt 0:07:30] LiveBook: 4 Games} a6 {[%emt 0:06:33]} 8. Bc4 {[%emt 0:03:55]} h6 {[%emt 0:14:32]} 9. Bxf6 $146 {[%emt 0:08:21]} (9. Bh4 Be7 10. Bxf6 Bxf6 11. Nd5 d6 12. b4 Bg4 {0-1 (32) Blazquez Lafuente,D-Glavina,P (2460) Alfaro 2010}) 9... Qxf6 {[%emt 0:00:11]} 10. Nd5 {[%emt 0:00:07]} Qd8 $1 {[%emt 0:01:58]} 11. a4 {[%emt 0:04:43]} Bc5 {[%emt 0:04:53]} 12. c3 {[%emt 0:04:30]} d6 {[%emt 0:03:06]} 13. h3 {[%emt 0:09:11]} Ba7 {[%emt 0:01:14]} 14. Re1 {[%emt 0:03:40]} Ne7 {[%emt 0:17:36]} 15. Ne3 {[%emt 0:14:28]} Ng6 {[%emt 0:02:25]} 16. Qb3 {[%emt 0:02:25]} Rf8 {[%emt 0:04:24]} 17. d4 {[%emt 0:06:50]} c6 {[%emt 0:00:43]} 18. dxe5 {[%emt 0:13:01]} dxe5 {[%emt 0:00:18]} 19. a5 {[%emt 0:00:26]} Qf6 {[%emt 0:01:28]} 20. Nf5 {[%emt 0:02:54]} Nf4 {[%emt 0:02:29]} 21. Qc2 {[%emt 0:01:55]} Be6 {[%emt 0:01:29]} 22. Bf1 {[%emt 0:01:28]} g6 {[%emt 0:06:00]} 23. Nxh6+ {[%emt 0:02:54]} Kg7 {[%emt 0:00:05]} 24. Ng4 {[%emt 0:00:40]} Nxh3+ {[%emt 0:01:15]} 25. gxh3 {[%emt 0:00:32]} Bxg4 {[%emt 0:01:42]} 26. hxg4 {[%emt 0:00:31]} Qxf3 {[%emt 0:00:06]} 27. Qe2 {[%emt 0:00:20]} Qf4 {[%emt 0:02:01]} 28. Bg2 {[%emt 0:00:39]} Rh8 {[%emt 0:00:29]} 29. Qf3 {[%emt 0:00:29]} Qxf3 {[%emt 0:01:12]} 30. Bxf3 {[%emt 0:00:05]} Rh3 {[%emt 0:00:05]} 31. Kg2 {[%emt 0:02:15]} Rah8 {[%emt 0:00:22]} 32. Rh1 {[%emt 0:00:06]} Rxh1 {[%emt 0:00:04]} 33. Rxh1 {[%emt 0:00:06]} Rxh1 {[%emt 0:00:02]} 34. Kxh1 {[%emt 0:00:06]} Bxf2 {[%emt 0:00:03]} 35. g5 {[%emt 0:05:24]} Be3 {[%emt 0:02:14]} 36. Bg4 {[%emt 0:00:08]} b6 {[%emt 0:00:07]} 37. axb6 {[%emt 0:01:16]} Bxb6 {[%emt 0:00:06]} 38. Bd7 {[%emt 0:01:50]} c5 {[%emt 0:00:15]} 39. Kg2 {[%emt 0:00:42]} Bd8 {[%emt 0:00:18]} 40. b4 {[%emt 0:00:19]} a5 {[%emt 0:03:35]} 41. bxa5 {[%emt 0:02:40]} Bxa5 {[%emt 0:00:01]} 42. c4 {[%emt 0:00:13]} Bd2 {[%emt 0:00:04]} 43. Kf3 {[%emt 0:00:18]} Bxg5 {[%emt 0:00:06]} 44. Kg4 {[%emt 0:00:15]} Bd2 {[%emt 0:02:32]} 45. Bc8 {[%emt 0:00:20]} Kf6 {[%emt 0:00:16]} 46. Bd7 {[%emt 0:00:11]} Ke7 {[%emt 0:00:06]} 47. Bc8 {[%emt 0:00:11]} Kd8 {[%emt 0:00:42]} 48. Bb7 {[%emt 0:00:08]} Kd7 {[%emt 0:00:56]} 49. Bd5 {[%emt 0:00:21]} Ke7 {[%emt 0:00:05]} 50. Bb7 {[%emt 0:00:16]} Be3 {[%emt 0:01:11]} 51. Bd5 {[%emt 0:00:25]} f6 {[%emt 0:00:32]} 52. Bb7 {[%emt 0:00:23]} Bf4 {[%emt 0:00:09]} 53. Bd5 {[%emt 0:00:18]} Ke8 {[%emt 0:00:59]} 54. Bb7 {[%emt 0:00:15]} Kd7 {[%emt 0:00:31]} 55. Bd5 {[%emt 0:00:10]} Kc7 {[%emt 0:00:31]} 56. Bf7 {[%emt 0:00:09]} g5 {[%emt 0:00:25]} 57. Be6 {[%emt 0:00:25]} Kb6 {[%emt 0:00:30]} 58. Kf5 {[%emt 0:00:35]} Ka5 {[%emt 0:00:26]} 59. Kxf6 {[%emt 0:00:16]} Kb4 {[%emt 0:00:19]} 60. Kf5 {[%emt 0:00:08]} Kc3 {[%emt 0:00:06]} 61. Kg4 {[%emt 0:00:12]} Kd3 {[%emt 0:00:58]} 62. Bd5 $1 {[%emt 0:00:07]} Ke3 {[%emt 0:00:44]} 63. Bc6 {[%emt 0:00:16]} Kd4 {[%emt 0:00:30]} 64. Bd5 {[%emt 0:00:12]} Kd3 {[%emt 0:00:06]} 65. Kf3 {[%emt 0:00:09]} Kd4 $11 {[%emt 0:00:53]} 1/2-1/2